[Event "Early-Titled-Tuesday-Blitz-October-24-2023"]
[Site "Chess.com"]
[Date "2023.10.24"]
[Round "3"]
[White "Wizard_97"]
[Black "Witik"]
[Result "1-0"]
[WhiteElo "2618"]
[BlackElo "2801"]
[TimeControl "180+1"]
[EndTime "8:27:10 PDT"]
[Termination "Wizard_97 won by resignation"]

1. e4 {[%clk 0:03:00.9]} 1... c5 {[%clk 0:02:58.7]} 2. Nf3 {[%clk 0:03:01.4]}
2... d6 {[%clk 0:02:58.7]} 3. d4 {[%clk 0:03:01.8]} 3... cxd4 {[%clk 0:02:59.4]}
4. Nxd4 {[%clk 0:03:02.7]} 4... Nf6 {[%clk 0:03:00]} 5. Nc3 {[%clk 0:03:03.2]}
5... a6 {[%clk 0:03:00.3]} 6. Be3 {[%clk 0:03:03.6]} 6... e5 {[%clk 0:03:00.3]}
7. Nb3 {[%clk 0:03:03.8]} 7... Be6 {[%clk 0:03:00.6]} 8. f3 {[%clk 0:03:02.5]}
8... Be7 {[%clk 0:03:00.7]} 9. Qd2 {[%clk 0:03:03.2]} 9... h5 {[%clk 0:03:01]}
10. Nd5 {[%clk 0:03:01.3]} 10... Nxd5 {[%clk 0:03:00.6]} 11. exd5 {[%clk
0:03:02.2]} 11... Bf5 {[%clk 0:03:01.2]} 12. Be2 {[%clk 0:03:00.6]} 12... Nd7
{[%clk 0:02:59.5]} 13. c4 {[%clk 0:02:59.4]} 13... a5 {[%clk 0:02:57.1]} 14. a4
{[%clk 0:02:46.2]} 14... b6 {[%clk 0:02:55.8]} 15. O-O {[%clk 0:02:46.1]} 15...
Nc5 {[%clk 0:02:18.2]} 16. Nc1 {[%clk 0:02:43.8]} 16... g5 {[%clk 0:02:12]} 17.
b4 {[%clk 0:02:40.5]} 17... axb4 {[%clk 0:02:10.2]} 18. Qxb4 {[%clk 0:02:41.4]}
18... O-O {[%clk 0:02:01.6]} 19. Nb3 {[%clk 0:02:38]} 19... Bd7 {[%clk
0:01:55.6]} 20. Nxc5 {[%clk 0:02:33.2]} 20... bxc5 {[%clk 0:01:53.8]} 21. Qb3
{[%clk 0:02:33.8]} 21... Qc7 {[%clk 0:01:49.5]} 22. Qc2 {[%clk 0:02:30.2]} 22...
f5 {[%clk 0:01:47.8]} 23. Bd2 {[%clk 0:02:26.9]} 23... Bf6 {[%clk 0:01:36.4]}
24. Ra2 {[%clk 0:02:21.6]} 24... Rae8 {[%clk 0:01:18.8]} 25. a5 {[%clk
0:02:09.5]} 25... e4 {[%clk 0:01:18.7]} 26. fxe4 {[%clk 0:02:09.5]} 26... Bd4+
{[%clk 0:01:18.8]} 27. Kh1 {[%clk 0:02:09.4]} 27... fxe4 {[%clk 0:01:19.3]} 28.
a6 {[%clk 0:02:08.3]} 28... Rxf1+ {[%clk 0:01:15.2]} 29. Bxf1 {[%clk 0:02:08.9]}
29... Bc8 {[%clk 0:01:06.9]} 30. a7 {[%clk 0:02:07.7]} 30... Qf7 {[%clk
0:01:06.4]} 31. Be2 {[%clk 0:02:03.5]} 31... Qf2 {[%clk 0:01:03.9]} 32. Qd1
{[%clk 0:02:04]} 32... Bb7 {[%clk 0:01:02.9]} 33. Bxg5 {[%clk 0:01:55.9]} 33...
Ba8 {[%clk 0:00:52]} 34. Ra6 {[%clk 0:01:43.7]} 34... e3 {[%clk 0:00:39.3]} 35.
Rxd6 {[%clk 0:01:39.4]} 35... Rf8 {[%clk 0:00:35.3]} 36. Rg6+ {[%clk 0:01:28.7]}
36... Kh7 {[%clk 0:00:31.9]} 37. Rh6+ {[%clk 0:01:16.3]} 37... Kg7 {[%clk
0:00:31.4]} 38. Rb6 {[%clk 0:01:12.3]} 38... h4 {[%clk 0:00:26.9]} 39. Bh6+
{[%clk 0:01:10.1]} 39... Kg8 {[%clk 0:00:24.1]} 40. Bxf8 {[%clk 0:01:09.6]}
40... h3 {[%clk 0:00:23.2]} 41. Rg6+ {[%clk 0:01:08.2]} 41... Kxf8 {[%clk
0:00:22.3]} 42. Rg3 {[%clk 0:01:06.2]} 42... Ke7 {[%clk 0:00:17.3]} 43. Qf1
{[%clk 0:00:58.9]} 43... Bb7 {[%clk 0:00:12.7]} 44. Qxf2 {[%clk 0:00:56.1]}
44... exf2 {[%clk 0:00:12.6]} 45. Rxh3 {[%clk 0:00:56.3]} 45... Kd6 {[%clk
0:00:10.3]} 46. Rh7 {[%clk 0:00:54.5]} 46... Ba8 {[%clk 0:00:09]} 47. h4 {[%clk
0:00:55]} 1-0

[Event "Early-Titled-Tuesday-Blitz-October-24-2023"]
[Site "Chess.com"]
[Date "2023.10.24"]
[Round "3"]
[White "eljanov"]
[Black "Aswathchess"]
[Result "0-1"]
[WhiteElo "2813"]
[BlackElo "2649"]
[TimeControl "180+1"]
[EndTime "8:27:12 PDT"]
[Termination "Aswathchess won on time"]

1. d4 {[%clk 0:03:00.9]} 1... Nf6 {[%clk 0:02:39.5]} 2. Bf4 {[%clk 0:03:00.3]}
2... e6 {[%clk 0:02:39.7]} 3. e3 {[%clk 0:03:00]} 3... d5 {[%clk 0:02:39.9]} 4.
Nf3 {[%clk 0:02:53.6]} 4... Bd6 {[%clk 0:02:37.6]} 5. Ne5 {[%clk 0:02:53.8]}
5... c5 {[%clk 0:02:36.9]} 6. Bb5+ {[%clk 0:02:49.6]} 6... Kf8 {[%clk
0:02:11.5]} 7. O-O {[%clk 0:02:30.4]} 7... a6 {[%clk 0:02:10.5]} 8. Be2 {[%clk
0:02:28.2]} 8... Nc6 {[%clk 0:02:04.9]} 9. c3 {[%clk 0:02:15.4]} 9... h6 {[%clk
0:02:01.4]} 10. Nd2 {[%clk 0:02:14]} 10... Qc7 {[%clk 0:01:57.7]} 11. Ndf3
{[%clk 0:02:07.5]} 11... Nh5 {[%clk 0:01:57.3]} 12. Nxc6 {[%clk 0:01:35.7]}
12... Nxf4 {[%clk 0:01:55.6]} 13. exf4 {[%clk 0:01:31]} 13... bxc6 {[%clk
0:01:53.5]} 14. g3 {[%clk 0:01:30.7]} 14... Rb8 {[%clk 0:01:49.7]} 15. Qd2
{[%clk 0:01:23.9]} 15... g6 {[%clk 0:01:44.1]} 16. c4 {[%clk 0:01:08.1]} 16...
Qb6 {[%clk 0:01:20.4]} 17. cxd5 {[%clk 0:00:55.2]} 17... cxd5 {[%clk 0:01:19.3]}
18. dxc5 {[%clk 0:00:55.2]} 18... Bxc5 {[%clk 0:01:16.8]} 19. Rac1 {[%clk
0:00:53.6]} 19... Kg8 {[%clk 0:01:13.5]} 20. Ne5 {[%clk 0:00:43.1]} 20... Kg7
{[%clk 0:00:50]} 21. Nxg6 {[%clk 0:00:26.4]} 21... fxg6 {[%clk 0:00:47]} 22. Bd3
{[%clk 0:00:18.9]} 22... Be7 {[%clk 0:00:44.1]} 23. Bb1 {[%clk 0:00:15.8]} 23...
Bf6 {[%clk 0:00:43.8]} 24. Qd3 {[%clk 0:00:14.8]} 24... Kf7 {[%clk 0:00:31.4]}
25. Qxg6+ {[%clk 0:00:12.6]} 25... Ke7 {[%clk 0:00:31.8]} 26. Rfe1 {[%clk
0:00:10.9]} 26... Bd7 {[%clk 0:00:30.6]} 27. Rcd1 {[%clk 0:00:03.4]} 27... Rbg8
{[%clk 0:00:22.6]} 28. Qh5 {[%clk 0:00:03.7]} 28... Bd4 {[%clk 0:00:21.4]} 29.
Re2 {[%clk 0:00:02.2]} 29... Bb5 {[%clk 0:00:20.1]} 30. Red2 {[%clk 0:00:01.4]}
30... Bf6 {[%clk 0:00:20.2]} 31. Re1 {[%clk 0:00:01.6]} 31... Kd7 {[%clk
0:00:19]} 0-1

[Event "Early-Titled-Tuesday-Blitz-October-24-2023"]
[Site "Chess.com"]
[Date "2023.10.24"]
[Round "3"]
[White "Flameboard08"]
[Black "topin8"]
[Result "0-1"]
[WhiteElo "2594"]
[BlackElo "2452"]
[TimeControl "180+1"]
[EndTime "8:27:12 PDT"]
[Termination "topin8 won by checkmate"]

1. e4 {[%clk 0:02:55.7]} 1... e5 {[%clk 0:02:57]} 2. Nc3 {[%clk 0:02:53.4]} 2...
Nc6 {[%clk 0:02:56.8]} 3. b3 {[%clk 0:02:52.9]} 3... Nf6 {[%clk 0:02:54.8]} 4.
Bb2 {[%clk 0:02:52.6]} 4... Be7 {[%clk 0:02:41.1]} 5. g3 {[%clk 0:02:50.3]} 5...
O-O {[%clk 0:02:40.4]} 6. Bg2 {[%clk 0:02:50.8]} 6... d6 {[%clk 0:02:40.9]} 7.
Nge2 {[%clk 0:02:50.9]} 7... Kh8 {[%clk 0:02:41.2]} 8. O-O {[%clk 0:02:51]} 8...
Nd4 {[%clk 0:02:20.6]} 9. Nxd4 {[%clk 0:02:48.1]} 9... exd4 {[%clk 0:02:20.5]}
10. Ne2 {[%clk 0:02:48.8]} 10... c5 {[%clk 0:02:19.4]} 11. d3 {[%clk 0:02:47.5]}
11... Be6 {[%clk 0:02:10.8]} 12. h3 {[%clk 0:02:44.3]} 12... d5 {[%clk
0:01:39.1]} 13. e5 {[%clk 0:02:42]} 13... Nd7 {[%clk 0:01:39]} 14. f4 {[%clk
0:02:42.5]} 14... f5 {[%clk 0:01:33]} 15. Kh2 {[%clk 0:02:40.5]} 15... b5 {[%clk
0:01:27.9]} 16. b4 {[%clk 0:02:39.7]} 16... Qb6 {[%clk 0:01:23.1]} 17. Qe1
{[%clk 0:02:24.6]} 17... Rac8 {[%clk 0:01:20.2]} 18. Qf2 {[%clk 0:02:22.5]}
18... cxb4 {[%clk 0:01:07.2]} 19. Bxd4 {[%clk 0:02:03.7]} 19... Qb7 {[%clk
0:00:47]} 20. Rfc1 {[%clk 0:02:02.1]} 20... a5 {[%clk 0:00:47.1]} 21. Be3 {[%clk
0:02:00.2]} 21... Qa6 {[%clk 0:00:38.2]} 22. Nd4 {[%clk 0:01:59.2]} 22... Bc5
{[%clk 0:00:31.2]} 23. Qf3 {[%clk 0:01:54.2]} 23... Bxd4 {[%clk 0:00:28.4]} 24.
Bxd4 {[%clk 0:01:55.1]} 24... Rc7 {[%clk 0:00:27.6]} 25. a3 {[%clk 0:01:51.9]}
25... bxa3 {[%clk 0:00:22]} 26. Rxa3 {[%clk 0:01:52.8]} 26... Rfc8 {[%clk
0:00:22.3]} 27. Rca1 {[%clk 0:01:50.4]} 27... a4 {[%clk 0:00:20.1]} 28. c3
{[%clk 0:01:49.6]} 28... Qb7 {[%clk 0:00:11.4]} 29. Rb1 {[%clk 0:01:42.9]} 29...
Qc6 {[%clk 0:00:11.4]} 30. g4 {[%clk 0:01:41.1]} 30... g6 {[%clk 0:00:10.9]} 31.
gxf5 {[%clk 0:01:29.2]} 31... gxf5 {[%clk 0:00:11.8]} 32. h4 {[%clk 0:01:29.7]}
32... Nc5 {[%clk 0:00:12]} 33. Bh3 {[%clk 0:01:27]} 33... Rg7 {[%clk 0:00:09]}
34. h5 {[%clk 0:01:23.4]} 34... h6 {[%clk 0:00:08.9]} 35. Bf2 {[%clk 0:00:41.4]}
35... Nd7 {[%clk 0:00:06.2]} 36. Bh4 {[%clk 0:00:35.7]} 36... Rcg8 {[%clk
0:00:04.5]} 37. Rb2 {[%clk 0:00:33]} 37... Qc5 {[%clk 0:00:03.8]} 38. Raa2
{[%clk 0:00:28.5]} 38... Qg1# {[%clk 0:00:03.6]} 0-1

[Event "Early-Titled-Tuesday-Blitz-October-24-2023"]
[Site "Chess.com"]
[Date "2023.10.24"]
[Round "3"]
[White "hansen"]
[Black "deepfear"]
[Result "1-0"]
[WhiteElo "2929"]
[BlackElo "1784"]
[TimeControl "180+1"]
[EndTime "8:27:15 PDT"]
[Termination "hansen won on time"]

1. a3 {[%clk 0:02:58.6]} 1... g6 {[%clk 0:02:53.6]} 2. Nf3 {[%clk 0:02:57.2]}
2... Bg7 {[%clk 0:02:53.7]} 3. d4 {[%clk 0:02:57.6]} 3... Nf6 {[%clk 0:02:52.4]}
4. Bf4 {[%clk 0:02:57.4]} 4... O-O {[%clk 0:02:49.3]} 5. Nbd2 {[%clk 0:02:57.5]}
5... d6 {[%clk 0:02:38.2]} 6. e3 {[%clk 0:02:53]} 6... Nc6 {[%clk 0:02:28.4]} 7.
Bb5 {[%clk 0:02:52.1]} 7... a6 {[%clk 0:02:26.9]} 8. Bxc6 {[%clk 0:02:51.7]}
8... bxc6 {[%clk 0:02:27.8]} 9. O-O {[%clk 0:02:50.9]} 9... Rb8 {[%clk
0:02:23.1]} 10. Rb1 {[%clk 0:02:50.1]} 10... h6 {[%clk 0:02:15.7]} 11. h3 {[%clk
0:02:50.2]} 11... Nd7 {[%clk 0:02:10]} 12. Nc4 {[%clk 0:02:48.4]} 12... c5
{[%clk 0:02:03.3]} 13. Na5 {[%clk 0:02:47.2]} 13... Bb7 {[%clk 0:01:58.4]} 14.
Nxb7 {[%clk 0:02:47.5]} 14... Rxb7 {[%clk 0:01:58.8]} 15. c3 {[%clk 0:02:47.6]}
15... cxd4 {[%clk 0:01:50.4]} 16. exd4 {[%clk 0:02:43.3]} 16... c5 {[%clk
0:01:48.5]} 17. Re1 {[%clk 0:02:37.4]} 17... Re8 {[%clk 0:01:29.9]} 18. Qd2
{[%clk 0:02:26.6]} 18... Kh7 {[%clk 0:01:29.3]} 19. dxc5 {[%clk 0:01:48.7]}
19... Nxc5 {[%clk 0:01:24.8]} 20. Qc2 {[%clk 0:01:48.9]} 20... Ne6 {[%clk
0:01:14.1]} 21. Rxe6 {[%clk 0:01:42.1]} 21... fxe6 {[%clk 0:01:08.8]} 22. Nh4
{[%clk 0:01:42.6]} 22... Rf8 {[%clk 0:00:22.3]} 23. Nxg6 {[%clk 0:01:29]} 23...
Rf5 {[%clk 0:00:17.2]} 24. Nh4 {[%clk 0:01:27.7]} 24... Kg8 {[%clk 0:00:14.1]}
25. Nxf5 {[%clk 0:01:27.1]} 25... exf5 {[%clk 0:00:15]} 26. Qxf5 {[%clk
0:01:26.8]} 26... Qb8 {[%clk 0:00:07]} 27. Qe6+ {[%clk 0:01:20.6]} 27... Kh8
{[%clk 0:00:06]} 28. Bxh6 {[%clk 0:01:18.5]} 28... Bxh6 {[%clk 0:00:05.5]} 29.
Qxh6+ {[%clk 0:01:18.4]} 29... Kg8 {[%clk 0:00:06]} 30. Qe6+ {[%clk 0:01:18.2]}
30... Kf8 {[%clk 0:00:06.3]} 31. b4 {[%clk 0:01:18.2]} 31... Rc7 {[%clk
0:00:05]} 32. c4 {[%clk 0:01:17.4]} 32... Qc8 {[%clk 0:00:03.8]} 33. Qxc8+
{[%clk 0:01:17.5]} 33... Rxc8 {[%clk 0:00:04.7]} 34. Rc1 {[%clk 0:01:17.8]}
34... d5 {[%clk 0:00:04.1]} 35. c5 {[%clk 0:01:17.4]} 35... e5 {[%clk
0:00:03.3]} 36. f4 {[%clk 0:01:17.2]} 36... e4 {[%clk 0:00:03.3]} 37. Rd1 {[%clk
0:01:17.5]} 37... Rd8 {[%clk 0:00:03.3]} 38. Rd4 {[%clk 0:01:16.2]} 38... Ke7
{[%clk 0:00:02.9]} 39. a4 {[%clk 0:01:12.7]} 39... Ke6 {[%clk 0:00:03.3]} 40. b5
{[%clk 0:01:13.1]} 40... axb5 {[%clk 0:00:03.3]} 41. axb5 {[%clk 0:01:14]} 41...
Rc8 {[%clk 0:00:03.4]} 42. b6 {[%clk 0:01:03.4]} 42... Rxc5 {[%clk 0:00:02.4]}
43. Rb4 {[%clk 0:01:04.1]} 43... Rc8 {[%clk 0:00:02.1]} 44. b7 {[%clk
0:01:04.7]} 44... Rb8 {[%clk 0:00:02.5]} 45. Kf2 {[%clk 0:01:04.5]} 45... Kf5
{[%clk 0:00:02.6]} 46. Ke3 {[%clk 0:01:04.3]} 46... Ke6 {[%clk 0:00:02.1]} 47.
Rb6+ {[%clk 0:01:03.6]} 47... Kd7 {[%clk 0:00:01.8]} 48. Kd4 {[%clk 0:01:03.3]}
48... Kc7 {[%clk 0:00:01.5]} 49. Rb1 {[%clk 0:00:46.3]} 1-0

[Event "Early-Titled-Tuesday-Blitz-October-24-2023"]
[Site "Chess.com"]
[Date "2023.10.24"]
[Round "3"]
[White "ideika"]
[Black "chess123456s"]
[Result "1-0"]
[WhiteElo "2399"]
[BlackElo "2527"]
[TimeControl "180+1"]
[EndTime "8:27:18 PDT"]
[Termination "ideika won on time"]

1. e4 {[%clk 0:02:59.7]} 1... e5 {[%clk 0:02:56.7]} 2. Nf3 {[%clk 0:03:00]} 2...
Nf6 {[%clk 0:02:55.7]} 3. Nxe5 {[%clk 0:02:59.6]} 3... d6 {[%clk 0:02:56.2]} 4.
Nf3 {[%clk 0:02:59.6]} 4... Nxe4 {[%clk 0:02:56.7]} 5. Nc3 {[%clk 0:02:59.9]}
5... Nxc3 {[%clk 0:02:56.1]} 6. dxc3 {[%clk 0:03:00.8]} 6... Be7 {[%clk
0:02:56.3]} 7. Bc4 {[%clk 0:03:00.7]} 7... O-O {[%clk 0:02:57.2]} 8. Be3 {[%clk
0:03:00.5]} 8... Nc6 {[%clk 0:02:57.3]} 9. Qd2 {[%clk 0:02:59.9]} 9... Bf5
{[%clk 0:02:54.4]} 10. O-O-O {[%clk 0:02:58.9]} 10... Ne5 {[%clk 0:02:53.3]} 11.
Nxe5 {[%clk 0:02:55.9]} 11... dxe5 {[%clk 0:02:54.2]} 12. Qe2 {[%clk 0:02:46.4]}
12... Qc8 {[%clk 0:02:52.9]} 13. f3 {[%clk 0:02:44.2]} 13... Be6 {[%clk
0:02:52.1]} 14. Bd3 {[%clk 0:02:43.9]} 14... a5 {[%clk 0:02:49.3]} 15. h4 {[%clk
0:02:43.3]} 15... Bxa2 {[%clk 0:02:45]} 16. f4 {[%clk 0:02:31.4]} 16... a4
{[%clk 0:02:35.3]} 17. Qh5 {[%clk 0:02:31]} 17... g6 {[%clk 0:02:24.8]} 18. Qh6
{[%clk 0:02:30.9]} 18... a3 {[%clk 0:02:21.4]} 19. h5 {[%clk 0:02:28.5]} 19...
axb2+ {[%clk 0:02:21.4]} 20. Kxb2 {[%clk 0:02:28.9]} 20... Ba3+ {[%clk
0:00:30.2]} 21. Ka1 {[%clk 0:02:28.2]} 21... Be6 {[%clk 0:00:17.7]} 22. Kb1
{[%clk 0:00:11.2]} 22... Qd7 {[%clk 0:00:13]} 23. hxg6 {[%clk 0:00:07.6]} 23...
fxg6 {[%clk 0:00:13.9]} 24. Bc4 {[%clk 0:00:04.5]} 24... Qg7 {[%clk 0:00:07.9]}
25. Bxe6+ {[%clk 0:00:03.9]} 1-0

[Event "Early-Titled-Tuesday-Blitz-October-24-2023"]
[Site "Chess.com"]
[Date "2023.10.24"]
[Round "3"]
[White "Ginzburg_Yakov"]
[Black "Masterbeaterr"]
[Result "1/2-1/2"]
[WhiteElo "2607"]
[BlackElo "2445"]
[TimeControl "180+1"]
[EndTime "8:27:20 PDT"]
[Termination "Game drawn by repetition"]

1. d4 {[%clk 0:02:59.6]} 1... d5 {[%clk 0:02:59.3]} 2. Nf3 {[%clk 0:02:59.8]}
2... Nf6 {[%clk 0:02:58.8]} 3. c4 {[%clk 0:03:00]} 3... dxc4 {[%clk 0:02:59.7]}
4. g3 {[%clk 0:03:00.1]} 4... e6 {[%clk 0:02:58.6]} 5. Bg2 {[%clk 0:03:00.3]}
5... Nc6 {[%clk 0:02:58.9]} 6. O-O {[%clk 0:02:59.5]} 6... Rb8 {[%clk
0:02:51.1]} 7. a4 {[%clk 0:02:40.9]} 7... a6 {[%clk 0:02:50.9]} 8. Ne5 {[%clk
0:02:40.6]} 8... Nxe5 {[%clk 0:02:49]} 9. dxe5 {[%clk 0:02:40.9]} 9... Qxd1
{[%clk 0:02:49.6]} 10. Rxd1 {[%clk 0:02:41.6]} 10... Nd7 {[%clk 0:02:50.2]} 11.
f4 {[%clk 0:02:40]} 11... b5 {[%clk 0:02:36]} 12. Be3 {[%clk 0:02:25.8]} 12...
Bb7 {[%clk 0:02:28.7]} 13. axb5 {[%clk 0:02:15.1]} 13... Bxg2 {[%clk 0:02:25.1]}
14. Kxg2 {[%clk 0:02:14.6]} 14... axb5 {[%clk 0:02:25.7]} 15. Ra7 {[%clk
0:02:09.7]} 15... Kd8 {[%clk 0:02:14.6]} 16. Nc3 {[%clk 0:02:07.1]} 16... Kc8
{[%clk 0:02:14.5]} 17. Ne4 {[%clk 0:02:00.5]} 17... Be7 {[%clk 0:02:12.1]} 18.
h4 {[%clk 0:01:39.3]} 18... h5 {[%clk 0:02:04.1]} 19. Kf3 {[%clk 0:01:37.9]}
19... Rd8 {[%clk 0:02:03.4]} 20. Nd6+ {[%clk 0:01:27.4]} 20... Bxd6 {[%clk
0:01:16.2]} 21. exd6 {[%clk 0:01:27.2]} 21... Rb7 {[%clk 0:01:15.1]} 22. Ra8+
{[%clk 0:00:49.1]} 22... Rb8 {[%clk 0:01:04.4]} 23. Ra5 {[%clk 0:00:37.8]} 23...
cxd6 {[%clk 0:00:49.1]} 24. Rxd6 {[%clk 0:00:37.2]} 24... Kc7 {[%clk 0:00:49.6]}
25. Rda6 {[%clk 0:00:35.5]} 25... Rb7 {[%clk 0:00:43.9]} 26. Bd4 {[%clk
0:00:25.5]} 26... f6 {[%clk 0:00:42.7]} 27. Rxe6 {[%clk 0:00:24.6]} 27... Nb8
{[%clk 0:00:37.4]} 28. Re7+ {[%clk 0:00:18.6]} 28... Rd7 {[%clk 0:00:37.4]} 29.
Rxd7+ {[%clk 0:00:18.3]} 29... Kxd7 {[%clk 0:00:37.9]} 30. Ra8 {[%clk
0:00:15.4]} 30... Nc6 {[%clk 0:00:36.8]} 31. Bc3 {[%clk 0:00:09.9]} 31... b4
{[%clk 0:00:35.9]} 32. Bd2 {[%clk 0:00:09.4]} 32... f5 {[%clk 0:00:32]} 33. e4
{[%clk 0:00:09]} 33... Nd4+ {[%clk 0:00:30.6]} 34. Ke3 {[%clk 0:00:09.5]} 34...
Nc2+ {[%clk 0:00:30.7]} 35. Kf3 {[%clk 0:00:08.5]} 35... Nd4+ {[%clk 0:00:21.1]}
36. Ke3 {[%clk 0:00:08.8]} 36... Nc2+ {[%clk 0:00:20.4]} 37. Kf3 {[%clk
0:00:09.3]} 37... Nd4+ {[%clk 0:00:20.7]} 1/2-1/2

[Event "Early-Titled-Tuesday-Blitz-October-24-2023"]
[Site "Chess.com"]
[Date "2023.10.24"]
[Round "3"]
[White "vladislavkovalev"]
[Black "leejunhyeok"]
[Result "1-0"]
[WhiteElo "2886"]
[BlackElo "2662"]
[TimeControl "180+1"]
[EndTime "8:27:27 PDT"]
[Termination "vladislavkovalev won on time"]

1. e4 {[%clk 0:02:58.4]} 1... c5 {[%clk 0:02:59.8]} 2. Nf3 {[%clk 0:02:58.4]}
2... d6 {[%clk 0:03:00]} 3. Bb5+ {[%clk 0:02:58.8]} 3... Bd7 {[%clk 0:02:59.9]}
4. Bxd7+ {[%clk 0:02:59.1]} 4... Qxd7 {[%clk 0:03:00.8]} 5. c4 {[%clk
0:02:59.8]} 5... e5 {[%clk 0:03:00.6]} 6. Nc3 {[%clk 0:02:59.5]} 6... Nc6 {[%clk
0:03:00.8]} 7. d3 {[%clk 0:02:59.8]} 7... g6 {[%clk 0:03:01.1]} 8. a3 {[%clk
0:02:59.4]} 8... Bg7 {[%clk 0:03:00.8]} 9. b4 {[%clk 0:02:59.6]} 9... Nge7
{[%clk 0:03:01]} 10. Be3 {[%clk 0:02:52.6]} 10... b6 {[%clk 0:02:57.9]} 11. Nd2
{[%clk 0:02:51.8]} 11... O-O {[%clk 0:02:56.4]} 12. f3 {[%clk 0:02:52.3]} 12...
cxb4 {[%clk 0:02:40.8]} 13. axb4 {[%clk 0:02:53.2]} 13... Nxb4 {[%clk
0:02:41.5]} 14. Qb1 {[%clk 0:02:38.6]} 14... Nbc6 {[%clk 0:02:36.5]} 15. O-O
{[%clk 0:02:35]} 15... Nd4 {[%clk 0:02:33.7]} 16. Ra2 {[%clk 0:02:14.9]} 16...
f5 {[%clk 0:02:26.8]} 17. Qb2 {[%clk 0:02:13.9]} 17... fxe4 {[%clk 0:02:18.1]}
18. dxe4 {[%clk 0:02:09.4]} 18... Rfc8 {[%clk 0:01:39.9]} 19. Rfa1 {[%clk
0:02:08.8]} 19... Rc6 {[%clk 0:01:24.7]} 20. Nb5 {[%clk 0:01:39.5]} 20... Nxb5
{[%clk 0:01:18.1]} 21. cxb5 {[%clk 0:01:40.4]} 21... Rc7 {[%clk 0:01:12]} 22.
Bxb6 {[%clk 0:01:40.2]} 22... Rb7 {[%clk 0:01:12.4]} 23. Nc4 {[%clk 0:01:09.7]}
23... d5 {[%clk 0:01:04.6]} 24. exd5 {[%clk 0:01:00.8]} 24... Nxd5 {[%clk
0:00:59.9]} 25. Qb3 {[%clk 0:00:58.7]} 25... Qe6 {[%clk 0:00:49]} 26. Bxa7
{[%clk 0:00:22.4]} 26... e4 {[%clk 0:00:43]} 27. Bf2 {[%clk 0:00:08.8]} 27...
Rab8 {[%clk 0:00:24.1]} 28. Ra6 {[%clk 0:00:07.9]} 28... Qd7 {[%clk 0:00:22.9]}
29. Nb6 {[%clk 0:00:06.2]} 29... Rxb6 {[%clk 0:00:18]} 30. Rxb6 {[%clk
0:00:07.1]} 30... Rxb6 {[%clk 0:00:12]} 31. Ra8+ {[%clk 0:00:07.5]} 31... Kf7
{[%clk 0:00:03.9]} 32. Bxb6 {[%clk 0:00:08.2]} 32... Qb7 {[%clk 0:00:03.3]} 33.
Ra7 {[%clk 0:00:08.5]} 1-0

[Event "Early-Titled-Tuesday-Blitz-October-24-2023"]
[Site "Chess.com"]
[Date "2023.10.24"]
[Round "3"]
[White "MasterKroket"]
[Black "Akylbek2021"]
[Result "1-0"]
[WhiteElo "2533"]
[BlackElo "2267"]
[TimeControl "180+1"]
[EndTime "8:27:27 PDT"]
[Termination "MasterKroket won by checkmate"]

1. e4 {[%clk 0:03:00.9]} 1... e6 {[%clk 0:03:00.2]} 2. d4 {[%clk 0:03:00.4]}
2... d5 {[%clk 0:03:00.9]} 3. Nc3 {[%clk 0:03:00.8]} 3... Bb4 {[%clk 0:03:00.6]}
4. e5 {[%clk 0:03:01.3]} 4... c5 {[%clk 0:03:00.6]} 5. a3 {[%clk 0:03:00.7]}
5... Bxc3+ {[%clk 0:03:01.1]} 6. bxc3 {[%clk 0:03:01.6]} 6... Ne7 {[%clk
0:03:01.8]} 7. h4 {[%clk 0:03:00.4]} 7... Nbc6 {[%clk 0:02:58.2]} 8. Nf3 {[%clk
0:03:00.2]} 8... Qc7 {[%clk 0:02:54.8]} 9. h5 {[%clk 0:02:57.8]} 9... h6 {[%clk
0:02:52.4]} 10. g4 {[%clk 0:02:55.1]} 10... Bd7 {[%clk 0:02:47.2]} 11. Be3
{[%clk 0:02:47.5]} 11... cxd4 {[%clk 0:02:24]} 12. cxd4 {[%clk 0:02:45.5]} 12...
Na5 {[%clk 0:02:22.5]} 13. Nd2 {[%clk 0:02:38.3]} 13... Rc8 {[%clk 0:02:20.7]}
14. Bd3 {[%clk 0:02:37.4]} 14... Ba4 {[%clk 0:02:18.9]} 15. Ra2 {[%clk
0:02:26.9]} 15... Qc3 {[%clk 0:02:00.8]} 16. Qb1 {[%clk 0:02:19]} 16... b6
{[%clk 0:01:42.8]} 17. Qb4 {[%clk 0:02:18.5]} 17... Bd7 {[%clk 0:01:25.1]} 18.
O-O {[%clk 0:02:10.4]} 18... Qc7 {[%clk 0:00:27.2]} 19. Rc1 {[%clk 0:02:04.4]}
19... g6 {[%clk 0:00:17.6]} 20. c4 {[%clk 0:02:01.2]} 20... gxh5 {[%clk
0:00:15.8]} 21. gxh5 {[%clk 0:02:02.1]} 21... Qb7 {[%clk 0:00:10.6]} 22. c5
{[%clk 0:01:59.6]} 22... Nac6 {[%clk 0:00:09]} 23. Qb1 {[%clk 0:01:52.3]} 23...
Rb8 {[%clk 0:00:05.3]} 24. Rb2 {[%clk 0:01:51.9]} 24... Nf5 {[%clk 0:00:02.6]}
25. Bxf5 {[%clk 0:01:50.1]} 25... exf5 {[%clk 0:00:03.5]} 26. cxb6 {[%clk
0:01:48.7]} 26... axb6 {[%clk 0:00:04.4]} 27. Rc3 {[%clk 0:01:43.6]} 27... Na5
{[%clk 0:00:04.6]} 28. Rb4 {[%clk 0:01:27.4]} 28... b5 {[%clk 0:00:04.5]} 29. a4
{[%clk 0:01:25.2]} 29... Ke7 {[%clk 0:00:03.4]} 30. axb5 {[%clk 0:01:25.4]}
30... Bxb5 {[%clk 0:00:03.3]} 31. Rc5 {[%clk 0:01:25.6]} 31... Bd7 {[%clk
0:00:01.6]} 32. Rxb7 {[%clk 0:01:25.1]} 32... Rxb7 {[%clk 0:00:02.5]} 33. Rxa5
{[%clk 0:01:21.9]} 33... Rxb1+ {[%clk 0:00:02.5]} 34. Nxb1 {[%clk 0:01:22.8]}
34... Rb8 {[%clk 0:00:02.3]} 35. Nd2 {[%clk 0:01:22.9]} 35... Rb2 {[%clk
0:00:01.9]} 36. Rxd5 {[%clk 0:01:22.1]} 36... Ke6 {[%clk 0:00:02]} 37. Rd6+
{[%clk 0:01:21.6]} 37... Ke7 {[%clk 0:00:02.7]} 38. Rxh6 {[%clk 0:01:22.3]}
38... Be6 {[%clk 0:00:02.8]} 39. Rxe6+ {[%clk 0:01:17.5]} 39... fxe6 {[%clk
0:00:02.7]} 40. h6 {[%clk 0:01:18.1]} 40... Ra2 {[%clk 0:00:03]} 41. Nf3 {[%clk
0:01:17.3]} 41... Ra8 {[%clk 0:00:03.6]} 42. Nh4 {[%clk 0:01:16.3]} 42... Kf7
{[%clk 0:00:04.1]} 43. Kg2 {[%clk 0:01:13.5]} 43... Kg8 {[%clk 0:00:04.3]} 44.
Kf3 {[%clk 0:01:13.2]} 44... Kh7 {[%clk 0:00:04.9]} 45. Ng2 {[%clk 0:01:10.5]}
45... Rg8 {[%clk 0:00:02.2]} 46. Nf4 {[%clk 0:01:07.3]} 46... Re8 {[%clk
0:00:02.4]} 47. Nh5 {[%clk 0:01:06.9]} 47... Re7 {[%clk 0:00:02.2]} 48. Nf6+
{[%clk 0:01:07.1]} 48... Kh8 {[%clk 0:00:02.2]} 49. Bg5 {[%clk 0:01:05.7]} 49...
Ra7 {[%clk 0:00:02.4]} 50. d5 {[%clk 0:01:04.6]} 50... exd5 {[%clk 0:00:02.5]}
51. Nxd5 {[%clk 0:01:04.6]} 51... Ra4 {[%clk 0:00:02.5]} 52. e6 {[%clk
0:01:04.3]} 52... Kh7 {[%clk 0:00:03]} 53. e7 {[%clk 0:01:04.4]} 53... Re4
{[%clk 0:00:03.8]} 54. Nf6+ {[%clk 0:01:03.7]} 54... Kg6 {[%clk 0:00:03.9]} 55.
Nxe4 {[%clk 0:01:03.9]} 55... fxe4+ {[%clk 0:00:04.8]} 56. Kxe4 {[%clk
0:01:04.1]} 56... Kf7 {[%clk 0:00:05.7]} 57. h7 {[%clk 0:01:04.3]} 57... Kg7
{[%clk 0:00:05.6]} 58. e8=Q {[%clk 0:01:02.8]} 58... Kxh7 {[%clk 0:00:06.2]} 59.
Qf7+ {[%clk 0:01:02.4]} 59... Kh8 {[%clk 0:00:06.4]} 60. Bf6# {[%clk 0:01:03]}
1-0